fUST/lending_fUST_20260201
["ID","MTS","AMOUNT","RATE_DAILY","PERIOD"]
[404182241,1769905390778,-300.0,0.00011666,2]
[404182242,1769905390816,-499.99,0.00011667,2]
[404182243,1769905390854,-500.0,0.00011667,2]
[404182244,1769905390890,-500.0,0.00011667,2]
[404182245,1769905390927,-500.0,0.00011667,2]
[404182246,1769905390961,-500.0,0.00011667,2]
[404182247,1769905390998,-500.0,0.00011667,2]
[404182248,1769905391033,-500.0,0.00011667,2]
[404182249,1769905391066,-584.0,0.00011668,2]
[404182250,1769905391355,-1232.03,0.00011668,2]
[404182251,1769905561023,-5000.0,0.00011551,2]
[404182252,1769905561072,-0.01,0.00011667,2]
[404182253,1769905571060,-300.0,0.00011666,2]
[404182254,1769905571095,-299.99,0.00011667,2]
[404182255,1769905571131,-300.0,0.00011667,2]
[404182256,1769905571165,-300.0,0.00011667,2]
[404182257,1769905571200,-1200.0,0.00011667,2]
[404182258,1769905571234,-300.0,0.00011668,2]
[404182259,1769905580771,4600.03,0.00011668,2]
[404182260,1769905593135,-399.97,0.00011668,2]
[404182261,1769905593160,-58.99492981,0.00011668,2]
[404182263,1769905746098,-5000.0,0.00011552,2]
[404182264,1769905746119,-150.0,0.0001161,2]
[404182265,1769905746140,-300.0,0.00011667,2]
[404182266,1769905746159,-500.0,0.00011668,2]
[404182267,1769905746182,-500.0,0.00011668,2]
[404182268,1769905746204,-500.0,0.00011668,2]
[404182269,1769905746225,-500.0,0.00011668,2]
[404182270,1769905746245,-500.0,0.00011668,2]
[404182271,1769905746267,-183.63189525,0.00011668,2]
[404182272,1769905746299,-500.0,0.00011668,2]
[404182273,1769905746320,-405.21807983,0.00011668,2]
[404182274,1769905746341,-385.99195581,0.00011668,2]
[404182275,1769905746365,-414.34875273,0.00011668,2]
[404182276,1769905746385,-934.93204889,0.00011669,2]
[404182277,1769905746410,-156.96605361,0.00011669,2]
[404182278,1769905746430,-15242.43908905,0.00011669,2]
[404182280,1769905759151,-5000.0,0.00011553,2]
[404182281,1769905759175,-46129.32517965,0.00011669,2]
[404182282,1769905761106,-1225.36949273,0.00011669,2]
[404182283,1769905761130,-300.0,0.00011902,2]
[404182284,1769905761152,-300.0,0.00011902,2]
[404182285,1769905761174,-300.0,0.00011902,2]
[404182286,1769905761196,-300.0,0.00011902,2]
[404182287,1769905761218,-300.0,0.00011902,2]
[404182288,1769905761240,-300.0,0.00011902,2]
[404182289,1769905761262,-300.0,0.00011902,2]
[404182290,1769905761284,-300.0,0.00011902,2]
[404182291,1769905761308,-300.0,0.00011902,2]
[404182292,1769905761333,-300.0,0.00011902,2]
[404182293,1769905761356,-300.0,0.00011902,2]
[404182294,1769905761378,-300.0,0.00011902,2]
[404182295,1769905761401,-300.0,0.00011902,2]
[404182296,1769905761425,-300.0,0.00011902,2]
[404182297,1769905761448,-300.0,0.00011902,2]
[404182298,1769905761471,-457.96632076,0.00011902,2]
[404182341,1769905831788,-997.14197923,0.00011783,2]
[404182719,1769905840303,-38.53168531,0.00011783,2]
[404182766,1769905845623,-213.4776042,0.00011243,2]
[404182767,1769905845632,-3964.32633546,0.00011783,2]
[404182769,1769905845642,-586.0,0.00011783,2]
[404182770,1769905845651,-142.03367924,0.00011902,2]
[404182771,1769905845660,-406.47798526,0.00012,5]
[404182772,1769905845668,-300.0,0.00012166,2]
[404182773,1769905845678,-677.0,0.00012166,2]
[404182774,1769905845689,-28982.58201669,0.00012167,2]
[404182775,1769905845699,-35000.0,0.00012267,2]
[404182776,1769905845708,-19361.8667417,0.00012371,2]
[404182777,1769905845717,-300.0,0.00012409,2]
[404182778,1769905845726,-300.0,0.00012409,2]
[404182779,1769905845735,-300.0,0.00012409,2]
[404182780,1769905845744,-300.0,0.00012409,2]
[404182781,1769905845753,-300.0,0.00012409,2]
[404182782,1769905845762,-300.0,0.00012409,2]
[404182783,1769905845771,-300.0,0.00012409,2]
[404182784,1769905845780,-300.0,0.00012409,2]
[404182785,1769905845789,-300.0,0.00012409,2]
[404182786,1769905845798,-300.0,0.00012409,2]
[404182787,1769905845807,-300.0,0.00012409,2]
[404182788,1769905845816,-300.0,0.00012409,2]
[404182789,1769905845824,-300.0,0.00012409,2]
[404182790,1769905845834,-300.0,0.00012409,2]
[404182791,1769905845843,-5510.35625806,0.000129,2]
[404182804,1769905846236,-1311.13718402,0.000129,2]
[404182805,1769905846246,-490.89936421,0.00013092,2]
[404182806,1769905846257,-229.10063579,0.00013092,2]
[404182807,1769905846267,-527.31612557,0.00013273,2]
[404182809,1769905846277,-420.0,0.00013353,2]
[404182810,1769905846286,-177.0,0.0001361,2]
[404182811,1769905846295,-176.32447461,0.00013699,2]
[404182815,1769906361001,-668.56272238,0.00010928,2]
[404182816,1769906364819,-508.3023,0.00010928,2]
[404182817,1769906366275,-310.3794556,0.00010928,2]
[404182818,1769906465454,-4181.3182444,0.00010711,2]
[404182819,1769906591487,-1487.24447798,0.00010498,2]
[404182820,1769906591516,-2844.20279964,0.00010604,2]
[404182821,1769906591943,-1337.11544476,0.00010604,2]
[404182822,1769906591975,-818.6817556,0.00010711,2]
[404182823,1769906592006,-572.0,0.00010819,2]
[404182824,1769906592032,-300.0,0.00010927,2]
[404182825,1769906592058,-1349.82975622,0.00010928,2]
[404182826,1769906592086,-150.0,0.000115,2]
[404182827,1769906592115,-300.0,0.00011555,2]
[404182828,1769906597897,-1200.0,0.00011556,2]
[404182829,1769906597937,-4681.8515316,0.00011557,2]
[404182830,1769906601595,-10000.01,0.00011557,2]
[404182831,1769906743133,-219.71839777,0.00011327,2]
[404182832,1769906743244,-150.0,0.00011384,2]
[404182833,1769906743263,-233.88894055,0.00011441,2]
[404182835,1769906821063,-5000.0,0.00011327,2]
[404182836,1769906821212,-0.01,0.00011537,2]
[404182837,1769906824780,-160.77946279,0.00011537,2]
[404182838,1769906824809,-300.0,0.00011555,2]
[404182839,1769906824835,-300.0,0.00011556,2]
[404182840,1769906824863,-300.0,0.00011556,2]
[404182841,1769906824893,-300.0,0.00011556,2]
[404182842,1769906824923,-480.0,0.00011556,2]
[404182843,1769906826099,-197.89205019,0.00011558,2]
[404182844,1769906830710,500.0,0.00011557,2]
[404182845,1769906831043,500.0,0.00011557,2]
[404182846,1769906831350,500.0,0.00011557,2]
[404182847,1769906831400,500.0,0.00011557,2]
[404182848,1769906831655,500.0,0.00011557,2]
[404182849,1769906831732,500.0,0.00011557,2]
[404182850,1769906832235,500.0,0.00011557,2]
[404182851,1769906838049,2818.45107442,0.00011557,2]
[404182852,1769906838071,2181.54892558,0.00011557,2]
[404182853,1769906840088,-254.56159522,0.00011558,2]
[404182854,1769906852075,-1450.95916089,0.00011558,2]
[404182855,1769906860320,-500.0,0.00011557,2]
[404182856,1769906860350,-546.65713821,0.00011557,2]
[404182857,1769906860960,5000.0,0.00011442,2]
[404182858,1769906866413,500.0,0.00011557,2]
[404182859,1769906872224,500.0,0.00011557,2]
[404182860,1769906890942,-5000.0,0.00011442,2]
[404182861,1769906902952,-500.0,0.00011557,2]
[404182862,1769906902994,-300.0,0.00011557,2]
[404182863,1769906903035,-300.0,0.00011557,2]
[404182864,1769906921445,-5000.0,0.00011441,2]
[404182865,1769906929631,-5000.0,0.00011442,2]
[404182866,1769906935945,-150.0,0.000115,2]
[404182867,1769906935974,-500.0,0.00011557,2]
[404182868,1769906936005,-227.40634869,0.00011557,2]
[404182869,1769906936137,-1545.23730262,0.00011558,2]
[404182870,1769906947124,-300.0,0.00011557,2]
[404182871,1769906947144,-16509.8624323,0.00011558,2]
[404182872,1769906949106,-6678.58372468,0.00011558,2]
[404182873,1769906949131,-8775.01822021,0.00011598,2]
[404182874,1769906955122,-5000.0,0.00011442,2]
[404182875,1769906955145,-500.0,0.00011557,2]
[404182876,1769906955167,-227.40634869,0.00011557,2]
[404182877,1769906955188,-1047.12734269,0.00011598,2]
[404182878,1769907007571,-5000.0,0.00011482,2]
[404182884,1769907016284,0.01,0.00011558,2]
[404182885,1769907016306,4999.99,0.00011558,2]
[404182926,1769907031797,-177.8544371,0.00011598,2]
[404182928,1769907031816,-300.0,0.00012046,2]
[404182930,1769907031826,-398.82168728,0.00012132,2]
[404182932,1769907031837,-789.59065,0.00012262,2]
[404182934,1769907031848,-1200.0,0.00012276,2]
[404182936,1769907031858,-1777.5818884,0.00012277,2]
[404182938,1769907031868,-300.0,0.00012436,2]
[404182940,1769907031877,-300.0,0.00012436,2]
[404182942,1769907031887,-300.0,0.00012436,2]
[404182944,1769907031898,-300.0,0.00012436,2]
[404182946,1769907031908,-1229.22823138,0.00012437,2]
[404182949,1769907032088,-21.98800558,0.00012437,2]
[404182950,1769907032100,-631.87264066,0.00012437,2]
[404182951,1769907032112,-1839.21342901,0.00012437,2]
[404182952,1769907032123,-840.97591378,0.00012437,2]
[404182992,1769907037860,-422.05757621,0.00012153,2]
[404182993,1769907037870,-911.42177959,0.00012437,2]
[404182994,1769907037879,-225.25181944,0.00012449,2]
[404182995,1769907037914,-287.44,0.00012449,2]
[404182996,1769907037925,-287.52399319,0.00012449,2]
[404182997,1769907037935,-300.0,0.00012712,2]
[404182998,1769907037944,-141.89144723,0.0001277,2]
[404183005,1769907040046,-28.28462169,0.00012313,2]
[404183006,1769907040139,-2e-08,0.00012313,2]
[404183007,1769907040151,-3312.85952668,0.00012313,2]
[404183009,1769907040342,-1658.85585161,0.00012313,2]
[404183010,1769907040353,-759.70363718,0.00012527,2]
[404183011,1769907040363,-1290.39886193,0.0001277,2]
[404183012,1769907040374,-2395.74198191,0.0001277,2]
[404183013,1769907040385,-4544.32474989,0.0001277,2]
[404183031,1769907044150,-67.06748203,0.0001277,2]
[404183033,1769907046100,-161.21768454,0.0001277,2]
[404183034,1769907046111,-294.90616049,0.0001277,2]
[404183035,1769907046122,-10564.06192098,0.0001277,2]
[404183036,1769907046133,-13181.69797329,0.0001277,2]
[404183037,1769907150270,248.36876617,0.00037153,120]
[404183038,1769907150625,248.36876617,0.00037153,120]
[404183039,1769907150993,248.36876617,0.00037153,120]
[404183040,1769907330122,1200.10846345,0.00037153,20]
[404183042,1769907415553,246.27844612,0.00037153,120]
[404183043,1769907425863,169.0463062,0.0001172,2]
[404183044,1769907433808,833.0,0.00030137,120]
[404183045,1769907447872,5000.0,0.00012132,2]
[404183046,1769907461946,594.92026358,0.00011526,2]
[404183047,1769907470316,4236.04343022,0.00012132,2]
[404183048,1769907470338,763.95656978,0.00012132,2]
[404183049,1769907471222,5284.95269913,0.00012102,2]
[404183050,1769907484630,541.18948141,0.00011561,2]
[404183052,1769907492604,3409.91124968,0.00012132,2]
[404183053,1769907492628,1590.08875032,0.00012132,2]
[404183054,1769907514929,5000.0,0.00012132,2]
[404183056,1769907537722,3409.92124968,0.00012132,2]
[404183057,1769907537746,1590.07875032,0.00012132,2]
[404183059,1769907560662,5000.0,0.00012132,2]
[404183060,1769907560963,250.0,0.00011463,2]
[404183061,1769907566660,-2476.14525846,0.00012132,2]
[404183062,1769907583383,5000.0,0.00012132,2]
[404183063,1769907605626,47.71948308,0.00012132,2]
[404183064,1769907605649,4952.28051692,0.00012132,2]
[404183066,1769907622464,442.09570072,0.00011597,2]
[404183067,1769907625617,1357.1214836,0.00011561,2]
[404183068,1769907628582,3248.51229876,0.00012132,2]
[404183069,1769907628605,1751.48770124,0.00012132,2]
[404183070,1769907650993,5000.0,0.00012132,2]
[404183071,1769907652334,-591.0,0.00012141,2]
[404183072,1769907652363,-150.0,0.00012141,2]
[404183073,1769907652392,-500.0,0.00012141,2]
[404183074,1769907652412,-475.08470335,0.00012141,2]
[404183075,1769907652422,-115.91529665,0.00012542,2]
[404183076,1769907652434,-105.41967605,0.00012542,2]
[404183077,1769907652444,-44.58032395,0.00012806,2]
[404183078,1769907652456,-455.41967605,0.00012806,2]
[404183079,1769907652466,-44.58032395,0.00012806,2]
[404183080,1769907652477,-282.31915626,0.00012806,2]
[404183100,1769907946117,-284.82792208,0.0001255,2]
[404183104,1769908004118,-4715.17207792,0.0001255,2]
[404183105,1769908004140,-150.0,0.00012677,2]
[404183106,1769908004173,-1172.0,0.00012803,2]
[404183107,1769908004197,-300.0,0.00012803,2]
[404183108,1769908004218,-416.35987248,0.00012804,2]
[404183113,1769908212774,5000.0,0.00012466,2]
[404183119,1769908235146,200.0,0.00027,120]
[404183120,1769908235454,5000.0,0.00012466,2]
[404183147,1769908237295,-599.0,0.00012676,2]
[404183149,1769908237305,-178.83870691,0.00012739,2]
[404183151,1769908237315,-500.0,0.00012801,2]
[404183153,1769908237324,-135.37256252,0.00012801,2]
[404183211,1769908238221,-364.62743748,0.00012801,2]
[404183212,1769908238233,-500.0,0.00012801,2]
[404183213,1769908238242,-500.0,0.00012801,2]
[404183214,1769908238252,-500.0,0.00012801,2]
[404183215,1769908238262,-500.0,0.00012801,2]
[404183216,1769908238271,-478.7724661,0.00012801,2]
[404183217,1769908238282,-500.0,0.00012801,2]
[404183218,1769908238291,-173.10051979,0.00012801,2]
[404183219,1769908238300,-500.0,0.00012801,2]
[404183220,1769908238310,-500.0,0.00012801,2]
[404183221,1769908238319,-500.0,0.00012801,2]
[404183222,1769908238329,-500.0,0.00012801,2]
[404183223,1769908238340,-500.0,0.00012801,2]
[404183224,1769908238350,-500.0,0.00012801,2]
[404183225,1769908238360,-500.0,0.00012801,2]
[404183226,1769908238369,-500.0,0.00012801,2]
[404183227,1769908238378,-500.0,0.00012801,2]
[404183228,1769908238388,-500.0,0.00012801,2]
[404183230,1769908238398,-500.0,0.00012801,2]
[404183232,1769908238408,-500.0,0.00012801,2]
[404183233,1769908238417,-257.3196078,0.00012801,2]
[404183234,1769908238471,-119.43021066,0.00012801,2]
[404183247,1769908240382,-170.35628424,0.00012801,2]
[404183248,1769908240391,-500.0,0.00012801,2]
[404183249,1769908240401,-10.86244044,0.00012801,2]
[404183267,1769908244768,-489.13755956,0.00012801,2]
[404183268,1769908244777,-202.68555966,0.00012801,2]
[404183269,1769908244786,-58.56931971,0.00012801,2]
[404183280,1769908246299,-441.43068029,0.00012801,2]
[404183281,1769908246310,-500.0,0.00012801,2]
[404183282,1769908246320,-500.0,0.00012801,2]
[404183283,1769908246330,-500.0,0.00012801,2]
[404183284,1769908246340,-500.0,0.00012801,2]
[404183285,1769908246349,-500.0,0.00012801,2]
[404183286,1769908246358,-500.0,0.00012801,2]
[404183287,1769908246367,-500.0,0.00012801,2]
[404183288,1769908246376,-500.0,0.00012801,2]
[404183289,1769908246386,-500.0,0.00012801,2]
[404183290,1769908246395,-500.0,0.00012801,2]
[404183291,1769908246404,-500.0,0.00012801,2]
[404183292,1769908246413,-500.0,0.00012801,2]
[404183293,1769908246422,-500.0,0.00012801,2]
[404183294,1769908246431,-500.0,0.00012801,2]
[404183295,1769908246441,-500.0,0.00012801,2]
[404183297,1769908246452,-500.0,0.00012801,2]
[404183298,1769908246461,-500.0,0.00012801,2]
[404183299,1769908246471,-500.0,0.00012801,2]
[404183300,1769908246480,-500.0,0.00012801,2]
[404183301,1769908246490,-500.0,0.00012801,2]
[404183302,1769908246499,-500.0,0.00012801,2]
[404183303,1769908246509,-500.0,0.00012801,2]
[404183304,1769908246518,-500.0,0.00012801,2]
[404183305,1769908246528,-500.0,0.00012801,2]
[404183306,1769908246538,-500.0,0.00012801,2]
[404183307,1769908246547,-500.0,0.00012801,2]
[404183308,1769908246556,-218.73091805,0.00012801,2]
[404183309,1769908246569,-281.26908195,0.00012801,2]
[404183310,1769908246579,-500.0,0.00012801,2]
[404183311,1769908246588,-500.0,0.00012801,2]
[404183312,1769908246597,-500.0,0.00012801,2]
[404183313,1769908246606,-500.0,0.00012801,2]
[404183314,1769908246615,-151.43750249,0.00012801,2]
[404183315,1769908246630,-148.56249751,0.00012801,2]
[404183316,1769908246639,-1948.05408278,0.00012802,2]
[404183317,1769908246664,-1744.70656001,0.00012802,2]
[404183318,1769908246673,-500.0,0.00013273,2]
[404183319,1769908246688,-527.31612557,0.00013273,2]
[404183320,1769908246697,-399.75562085,0.00013273,2]
[404183321,1769908246706,-500.0,0.00013273,2]
[404183322,1769908246715,-500.0,0.00013273,2]
[404183323,1769908246725,-500.0,0.00013273,2]
[404183324,1769908246733,-223.57271443,0.00013273,2]
[404183325,1769908246742,-500.0,0.00013273,2]
[404183326,1769908246752,-500.0,0.00013273,2]
[404183327,1769908246761,-500.0,0.00013273,2]
[404183328,1769908246773,-500.0,0.00013273,2]
[404183329,1769908246782,-222.8707806,0.00013273,2]
[404183330,1769908246791,-502.30333023,0.00013273,2]
[404183331,1769908246800,-500.0,0.00013273,2]
[404183332,1769908246811,-500.0,0.00013273,2]
[404183333,1769908246820,-500.0,0.00013273,2]
[404183334,1769908246829,-500.0,0.00013273,2]
[404183335,1769908246838,-500.0,0.00013273,2]
[404183336,1769908246847,-500.0,0.00013273,2]
[404183337,1769908246857,-254.4066558,0.00013273,2]
[404183338,1769908246866,-500.0,0.0001341,2]
[404183339,1769908246876,-500.0,0.00013547,2]
[404183340,1769908246885,-374.43645074,0.00013613,2]
[404183341,1769908246976,-314.3983567,0.00013613,2]
[404183342,1769908246988,-359.31240766,0.00013613,2]
[404183343,1769908246997,-289.42103302,0.00013613,2]
[404183344,1769908247007,-514.52628093,0.00013627,2]
[404183345,1769908247016,-1350.58424387,0.00013627,2]
[404183346,1769908247026,-233.42207071,0.00013684,2]
[404183347,1769908247036,-823.67552539,0.00013699,2]
[404183348,1769908247045,-236.138228,0.00013699,2]
[404183349,1769908247055,-470.66359469,0.00013699,2]
[404183358,1769908445160,1000.0,0.0003013,120]
[404183359,1769908508681,175.0,0.00029196,120]
[404183360,1769908537990,171.0,0.00027532,120]
[404183361,1769908539424,171.0,0.00028908,120]
[404183364,1769908674773,-238.33839598,0.00015011,5]
[404183365,1769908805401,175.0,0.00028674,120]
[404183366,1769908832125,171.0,0.00030087,120]
[404183368,1769908957684,0.01,0.00012286,2]
[404183369,1769908957705,10000.01,0.00012286,2]
[404183370,1769908957727,10000.01,0.00012286,2]
[404183371,1769908957748,10000.01,0.00012286,2]
[404183372,1769908957769,10000.01,0.00012286,2]
[404183373,1769908957790,3188.976157,0.00012286,2]
[404183374,1769909013319,170.4471022,0.00012164,2]
[404183384,1769909227225,5000.0,0.00012466,2]
[404183390,1769909403464,290.64153139,0.00037164,20]
[404183393,1769909410956,289.58094557,0.00037164,20]
[404183396,1769909431575,256.72,0.00037164,20]
[404183431,1769909432343,-500.0,0.00012705,2]
[404183505,1769909438406,-595.83565972,0.00012604,2]
[404183506,1769909438416,-4500.0,0.00012705,2]
[404183508,1769909438425,-600.0,0.00012705,2]
[404183509,1769909438435,-178.35095124,0.00012833,2]
[404183510,1769909438444,-300.0,0.00013112,2]
[404183511,1769909438454,-1200.0,0.00013158,2]
[404183512,1769909438463,-300.0,0.00013159,2]
[404183513,1769909438473,-300.0,0.00013159,2]
[404183514,1769909438483,-300.0,0.00013159,2]
[404183515,1769909438494,-379.003512,0.0001316,2]
[404183516,1769909438504,-4977.78030519,0.0001316,2]
[404183517,1769909438516,-10876.80616741,0.0001316,2]
[404183518,1769909438525,-502.121625,0.00013273,2]
[404183520,1769909438535,-10000.0,0.00013508,2]
[404183521,1769909438544,-1000.0,0.00013699,2]
[404183522,1769909438554,-374.11834993,0.00013699,2]
[404183523,1769909438563,-346.766,0.00013699,2]
[404183524,1769909438573,-420.0,0.00014429,2]
[404183525,1769909438583,-952.40023032,0.00014556,5]
[404183526,1769909438593,-176.0291832,0.00014559,5]
[404183527,1769909438603,-316.72331934,0.00014559,5]
[404183528,1769909438614,-453.53978351,0.00014559,5]
[404183529,1769909438624,-210.45412247,0.00014833,2]
[404183530,1769909438635,-160.22,0.00015,2]
[404183531,1769909438645,-163.39152907,0.00015011,2]
[404183532,1769909438655,-152.0,0.00015011,2]
[404183533,1769909438664,-152.0,0.00015011,2]
[404183534,1769909438674,-152.0,0.00015011,2]
[404183535,1769909438685,-151.0,0.00015011,2]
[404183536,1769909438694,-152.0,0.00015011,2]
[404183537,1769909438704,-152.0,0.00015011,2]
[404183538,1769909438713,-151.0,0.00015011,2]
[404183539,1769909438723,-240.0,0.00015011,2]
[404183540,1769909438734,-151.0,0.00015011,2]
[404183541,1769909438744,-151.0,0.00015011,2]
[404183542,1769909438754,-151.0,0.00015011,2]
[404183543,1769909438763,-335.0,0.00015011,2]
[404183544,1769909438774,-151.0,0.00015011,2]
[404183545,1769909438784,-335.0,0.00015011,2]
[404183546,1769909438794,-153.5789033,0.00015011,2]
[404183547,1769909438803,-335.0,0.00015011,2]
[404183548,1769909438813,-151.0,0.00015011,2]
[404183549,1769909438823,-335.0,0.00015011,2]
[404183550,1769909438833,-292.0,0.00015011,2]
[404183551,1769909438843,-335.0,0.00015011,2]
[404183552,1769909438853,-335.0,0.00015011,2]
[404183553,1769909438864,-151.0,0.00015011,2]
[404183554,1769909438874,-335.0,0.00015011,2]
[404183555,1769909438884,-335.0,0.00015011,2]
[404183556,1769909438894,-335.0,0.00015011,2]
[404183557,1769909438903,-335.0,0.00015011,2]
[404183558,1769909438913,-335.0,0.00015011,2]
[404183559,1769909438923,-335.0,0.00015011,2]
[404183560,1769909438933,-335.0,0.00015011,2]
[404183561,1769909438943,-335.0,0.00015011,2]
[404183562,1769909438953,-335.0,0.00015011,2]
[404183563,1769909438963,-335.0,0.00015011,2]
[404183564,1769909438973,-335.0,0.00015011,2]
[404183565,1769909438982,-335.0,0.00015011,2]
[404183566,1769909438992,-335.0,0.00015011,2]
[404183567,1769909439002,-335.0,0.00015011,2]
[404183568,1769909439011,-335.0,0.00015011,2]
[404183569,1769909439021,-335.0,0.00015011,2]
[404183570,1769909439035,-335.0,0.00015011,2]
[404183571,1769909439044,-335.0,0.00015011,2]
[404183572,1769909439054,-335.0,0.00015011,2]
[404183573,1769909439063,-335.0,0.00015011,2]
[404183574,1769909439075,-335.0,0.00015011,2]
[404183575,1769909439084,-335.0,0.00015011,2]
[404183576,1769909439094,-335.0,0.00015011,2]
[404183577,1769909439104,-335.0,0.00015011,2]
[404183578,1769909439114,-335.0,0.00015011,2]
[404183579,1769909439123,-500.0,0.00015048,5]
[404183580,1769909439132,-500.0,0.00015185,5]
[404183581,1769909439142,-426.378951,0.00015286,2]
[404183582,1769909439151,-8573.92978131,0.00015316,2]
[404183583,1769909439226,-335.0,0.00015011,2]
[404183584,1769909439237,-5860.8279572,0.00015316,2]
[404183596,1769909440475,-262.0624995,0.00015316,2]
[404183598,1769909440486,-1157.76623459,0.00015316,2]
[404183599,1769909440495,-500.0,0.00015322,5]
[404183601,1769909440504,-168.0,0.0001534,2]
[404183603,1769909440513,-168.0,0.00015348,2]
[404183604,1769909440522,-524.642,0.000154,2]
[404183605,1769909440531,-178.786,0.000154,2]
[404183606,1769909440541,-500.0,0.00015459,5]
[404183607,1769909440550,-168.0,0.00015513,2]
[404183608,1769909440559,-168.0,0.00015554,2]
[404183609,1769909440568,-500.0,0.00015596,5]
[404183610,1769909440577,-587.0,0.00015821,2]
[404183611,1769909440586,-168.0,0.00015988,2]
[404183612,1769909440595,-168.0,0.00016048,2]
[404183613,1769909440604,-168.0,0.00016089,2]
[404183614,1769909440614,-168.0,0.0001639,2]
[404183615,1769909440623,-168.0,0.00016433,2]
[404183616,1769909440632,-154.04,0.00016438,2]
[404183617,1769909440641,-168.0,0.00016568,2]
[404183618,1769909440650,-168.0,0.00016623,2]
[404183619,1769909440659,-152.70589072,0.00016653,2]
[404183620,1769909440672,-240.77867219,0.00016653,2]
[404183621,1769909440682,-168.0,0.00016654,2]
[404183622,1769909440691,-168.0,0.00016754,2]
[404183623,1769909440700,-242.55729369,0.00016833,2]
[404183624,1769909440709,-600.0,0.00017012,2]
[404183625,1769909440718,-473.75439,0.00017189,2]
[404183626,1769909440727,-823.0,0.00017348,2]
[404183627,1769909440736,-190.82,0.00017462,3]
[404183628,1769909440745,-572.51,0.00017462,3]
[404183630,1769909440754,-6190.55981881,0.0001747,2]
[404183639,1769909440825,-528.89051107,0.0001747,2]
[404183641,1769909440836,-1827.21136758,0.0001747,2]
[404183644,1769909440847,-38107.14595388,0.0001747,2]
[404183657,1769909444792,-335.0,0.00015011,2]
[404183658,1769909444802,-335.0,0.00015011,2]
[404183660,1769909444811,-256.2,0.00015011,2]
[404183662,1769909444820,-452.42418136,0.0001747,2]
[404183666,1769909445644,-325.55877297,0.00015011,2]
[404183677,1769909446678,-9.44122703,0.00015011,2]
[404183678,1769909446688,-335.0,0.00015011,2]
[404183680,1769909446697,-194.90577297,0.00015011,2]
[404183683,1769909446804,-140.09422703,0.00015011,2]
[404183684,1769909446814,-335.0,0.00015011,2]
[404183685,1769909446823,-2778.70697362,0.0001747,2]
[404183686,1769909446833,-7635.13919959,0.0001747,2]
[404183687,1769909446844,-6039.87231596,0.00017472,2]
[404183688,1769909446857,-1158.46664095,0.00017472,2]
[404183690,1769909473481,-335.0,0.00015011,2]
[404183691,1769909473509,-63.35812431,0.00015011,2]
[404183693,1769909485627,3932.0,0.00037164,120]
[404183695,1769909512291,2620.0,0.00037164,120]
[404183741,1769909711452,151.0,0.00037158,120]
[404183742,1769909712007,151.0,0.00037158,120]
[404183743,1769909712657,151.0,0.00037158,120]
[404183745,1769909713171,250.0,0.00037158,120]
[404183746,1769909713302,151.0,0.00037158,120]
[404183747,1769909713834,250.0,0.00037158,120]
[404183748,1769909713952,151.0,0.00037158,120]
[404183749,1769909714496,250.0,0.00037158,120]
[404183750,1769909714562,151.0,0.00037158,120]
[404183751,1769909715091,250.0,0.00037158,120]
[404183752,1769909715186,151.0,0.00037158,120]
[404183753,1769909715701,250.0,0.00037158,120]